[Event "*** Titled Tuesday 3|2 Blitz"]
[Site "Chess.com"]
[Date "2015.12.01"]
[Round "9"]
[White "Boryboy"]
[Black "MITerryble"]
[Result "0-1"]
[WhiteElo "2531"]
[BlackElo "2614"]
[TimeControl "180+2"]
[EndTime "19:01:16 PST"]
[Termination "MITerryble won by checkmate"]

1. d4 {[%clk 0:03:01.9]} 1... e6 {[%clk 0:03:01]} 2. Nf3 {[%clk 0:02:57.4]} 2...
Nf6 {[%clk 0:03:01.7]} 3. g3 {[%clk 0:02:56.5]} 3... b6 {[%clk 0:03:01.7]} 4.
Bg2 {[%clk 0:02:55.2]} 4... Bb7 {[%clk 0:03:03.6]} 5. c4 {[%clk 0:02:55.2]} 5...
Bb4+ {[%clk 0:03:04.4]} 6. Bd2 {[%clk 0:02:55.1]} 6... Be7 {[%clk 0:03:04.5]} 7.
O-O {[%clk 0:02:52.8]} 7... O-O {[%clk 0:03:05.3]} 8. Nc3 {[%clk 0:02:50.7]}
8... Ne4 {[%clk 0:03:04.9]} 9. d5 {[%clk 0:02:49.3]} 9... Nxd2 {[%clk
0:02:59.6]} 10. Nxd2 {[%clk 0:02:46.6]} 10... Qc8 {[%clk 0:02:54.8]} 11. Qc2
{[%clk 0:02:42]} 11... a5 {[%clk 0:02:40.4]} 12. a3 {[%clk 0:02:42.2]} 12... Na6
{[%clk 0:02:41.6]} 13. Rad1 {[%clk 0:02:34.8]} 13... Nc5 {[%clk 0:02:40.9]} 14.
e4 {[%clk 0:02:27.6]} 14... e5 {[%clk 0:02:37.2]} 15. Bh3 {[%clk 0:02:01]} 15...
Qd8 {[%clk 0:02:25.3]} 16. f4 {[%clk 0:01:59.2]} 16... Bf6 {[%clk 0:02:12.4]}
17. Nf3 {[%clk 0:01:56.1]} 17... Re8 {[%clk 0:01:56.5]} 18. b4 {[%clk 0:01:50]}
18... axb4 {[%clk 0:01:57.1]} 19. axb4 {[%clk 0:01:49]} 19... Na6 {[%clk
0:01:58.2]} 20. fxe5 {[%clk 0:01:36.4]} 20... Bxe5 {[%clk 0:02:00.1]} 21. Nxe5
{[%clk 0:01:34.9]} 21... Rxe5 {[%clk 0:02:02]} 22. Qb3 {[%clk 0:01:31.4]} 22...
Qe7 {[%clk 0:01:55.5]} 23. Rb1 {[%clk 0:01:32.2]} 23... h5 {[%clk 0:01:33.6]}
24. Rf4 {[%clk 0:01:30]} 24... Rg5 {[%clk 0:01:30.1]} 25. Rbf1 {[%clk 0:01:15]}
25... Rf8 {[%clk 0:01:26.7]} 26. Na2 {[%clk 0:01:09.2]} 26... Re5 {[%clk
0:01:19.5]} 27. Bg2 {[%clk 0:01:07]} 27... f6 {[%clk 0:01:09.6]} 28. Rc1 {[%clk
0:00:57.6]} 28... Qd6 {[%clk 0:00:35.5]} 29. Kh1 {[%clk 0:00:38.7]} 29... Bc8
{[%clk 0:00:28.4]} 30. Rb1 {[%clk 0:00:32.4]} 30... Qe7 {[%clk 0:00:28]} 31. Nc1
{[%clk 0:00:31.9]} 31... Rg5 {[%clk 0:00:23.4]} 32. Nd3 {[%clk 0:00:30.6]} 32...
Rg4 {[%clk 0:00:22.2]} 33. Bf3 {[%clk 0:00:28.5]} 33... Rg5 {[%clk 0:00:21.1]}
34. Ra1 {[%clk 0:00:29.9]} 34... d6 {[%clk 0:00:18.5]} 35. Qd1 {[%clk
0:00:25.8]} 35... f5 {[%clk 0:00:18.9]} 36. Qe2 {[%clk 0:00:20.1]} 36... Qf6
{[%clk 0:00:13.6]} 37. Rf1 {[%clk 0:00:18.5]} 37... Qc3 {[%clk 0:00:09.5]} 38.
Rc1 {[%clk 0:00:17]} 38... Qa3 {[%clk 0:00:07.1]} 39. Qd2 {[%clk 0:00:15.8]}
39... Rg6 {[%clk 0:00:04.5]} 40. Re1 {[%clk 0:00:17.1]} 40... Rgf6 {[%clk
0:00:04.6]} 41. exf5 {[%clk 0:00:17.4]} 41... Rxf5 {[%clk 0:00:05]} 42. Rxf5
{[%clk 0:00:18.3]} 42... Bxf5 {[%clk 0:00:06.6]} 43. Re3 {[%clk 0:00:17.2]}
43... Bxd3 {[%clk 0:00:06.3]} 44. Rxd3 {[%clk 0:00:18.6]} 44... Qxb4 {[%clk
0:00:07.2]} 45. Qxb4 {[%clk 0:00:19.4]} 45... Nxb4 {[%clk 0:00:08]} 46. Rb3
{[%clk 0:00:20.5]} 46... h4 {[%clk 0:00:06.5]} 47. gxh4 {[%clk 0:00:20.5]} 47...
Nc2 {[%clk 0:00:06.6]} 48. Bg4 {[%clk 0:00:21.8]} 48... Ne1 {[%clk 0:00:04.2]}
49. Kg1 {[%clk 0:00:20.9]} 49... Rf4 {[%clk 0:00:05.2]} 50. Be6+ {[%clk
0:00:21.8]} 50... Kh7 {[%clk 0:00:06.5]} 51. Rg3 {[%clk 0:00:20.7]} 51... Nf3+
{[%clk 0:00:07.5]} 52. Kg2 {[%clk 0:00:21.6]} 52... Nxh4+ {[%clk 0:00:08.5]} 53.
Kh3 {[%clk 0:00:23.2]} 53... Nf3 {[%clk 0:00:09.3]} 54. Kg2 {[%clk 0:00:22.4]}
54... Ne5 {[%clk 0:00:09.7]} 55. Ra3 {[%clk 0:00:21.2]} 55... Rxc4 {[%clk
0:00:10.5]} 56. Ra7 {[%clk 0:00:22.4]} 56... b5 {[%clk 0:00:10.9]} 57. Rb7
{[%clk 0:00:24]} 57... b4 {[%clk 0:00:12.5]} 58. Kg3 {[%clk 0:00:25.9]} 58...
Kg6 {[%clk 0:00:12.1]} 59. Rb8 {[%clk 0:00:27.3]} 59... Kh7 {[%clk 0:00:11.7]}
60. h4 {[%clk 0:00:27.8]} 60... g6 {[%clk 0:00:11.4]} 61. Re8 {[%clk 0:00:27.4]}
61... Kg7 {[%clk 0:00:11.8]} 62. Rb8 {[%clk 0:00:27.5]} 62... Kf6 {[%clk
0:00:12.6]} 63. Rf8+ {[%clk 0:00:28.6]} 63... Ke7 {[%clk 0:00:13.9]} 64. Rb8
{[%clk 0:00:30]} 64... c5 {[%clk 0:00:13.2]} 65. Rb7+ {[%clk 0:00:16]} 65... Kf6
{[%clk 0:00:14.3]} 66. Rb8 {[%clk 0:00:17.6]} 66... Rc3+ {[%clk 0:00:15.5]} 67.
Kg2 {[%clk 0:00:18.2]} 67... b3 {[%clk 0:00:15.9]} 68. Rb6 {[%clk 0:00:19.1]}
68... Rc2+ {[%clk 0:00:16]} 69. Kg3 {[%clk 0:00:20.1]} 69... b2 {[%clk
0:00:16.5]} 70. Bc8 {[%clk 0:00:16.3]} 70... Ke7 {[%clk 0:00:14]} 71. Rb7+
{[%clk 0:00:16.8]} 71... Kf6 {[%clk 0:00:15]} 72. Rb6 {[%clk 0:00:17.9]} 72...
c4 {[%clk 0:00:11.8]} 73. Rxd6+ {[%clk 0:00:18.5]} 73... Kg7 {[%clk 0:00:12.9]}
74. Rb6 {[%clk 0:00:19.5]} 74... c3 {[%clk 0:00:13.3]} 75. d6 {[%clk 0:00:16]}
75... Rd2 {[%clk 0:00:13.3]} 76. Kf4 {[%clk 0:00:16.4]} 76... c2 {[%clk
0:00:13.2]} 77. Rb7+ {[%clk 0:00:15.9]} 77... Kf6 {[%clk 0:00:12.9]} 78. d7
{[%clk 0:00:14.5]} 78... c1=Q {[%clk 0:00:11.7]} 79. Ke4 {[%clk 0:00:14.1]}
79... Qc4+ {[%clk 0:00:11.7]} 80. Ke3 {[%clk 0:00:15.5]} 80... Qd4# {[%clk
0:00:12.8]} 0-1

[Event "*** Titled Tuesday 3|2 Blitz"]
[Site "Chess.com"]
[Date "2015.12.01"]
[Round "9"]
[White "flubs"]
[Black "Cararay"]
[Result "0-1"]
[WhiteElo "2159"]
[BlackElo "2220"]
[TimeControl "180+2"]
[EndTime "19:01:19 PST"]
[Termination "Cararay won by resignation"]

1. d4 {[%clk 0:03:01.9]} 1... d5 {[%clk 0:02:59.9]} 2. c4 {[%clk 0:03:02.9]}
2... dxc4 {[%clk 0:02:57.8]} 3. Nf3 {[%clk 0:03:03.2]} 3... Nf6 {[%clk
0:02:53.6]} 4. g3 {[%clk 0:03:00.4]} 4... Nbd7 {[%clk 0:02:52]} 5. Bg2 {[%clk
0:03:01.3]} 5... Nb6 {[%clk 0:02:52.6]} 6. O-O {[%clk 0:03:01.6]} 6... Be6
{[%clk 0:02:52.2]} 7. Nbd2 {[%clk 0:02:59.8]} 7... c6 {[%clk 0:02:48.6]} 8. Ng5
{[%clk 0:02:57.5]} 8... Bd7 {[%clk 0:02:34.1]} 9. e4 {[%clk 0:02:52.7]} 9... h6
{[%clk 0:02:34.2]} 10. Ngf3 {[%clk 0:02:53.2]} 10... Bg4 {[%clk 0:02:34.3]} 11.
Re1 {[%clk 0:02:52.1]} 11... e6 {[%clk 0:02:31.5]} 12. Qc2 {[%clk 0:02:51.7]}
12... Bb4 {[%clk 0:02:30.9]} 13. Re3 {[%clk 0:02:44.2]} 13... Bxd2 {[%clk
0:02:28.2]} 14. Bxd2 {[%clk 0:02:42.5]} 14... Bxf3 {[%clk 0:02:26.9]} 15. Bxf3
{[%clk 0:02:44.1]} 15... Qxd4 {[%clk 0:02:26.3]} 16. Rd1 {[%clk 0:02:42.2]}
16... Qc5 {[%clk 0:02:24.2]} 17. a4 {[%clk 0:02:28.5]} 17... O-O {[%clk
0:02:15.3]} 18. b4 {[%clk 0:02:26.9]} 18... Qe7 {[%clk 0:02:05.1]} 19. a5 {[%clk
0:02:27.3]} 19... Nbd7 {[%clk 0:02:05.4]} 20. Qxc4 {[%clk 0:02:26.9]} 20... Ne5
{[%clk 0:02:05.8]} 21. Qc2 {[%clk 0:02:24.7]} 21... Nxf3+ {[%clk 0:02:06]} 22.
Rxf3 {[%clk 0:02:26.6]} 22... Rfd8 {[%clk 0:02:00.1]} 23. Rb3 {[%clk 0:02:08.6]}
23... a6 {[%clk 0:01:58.4]} 24. f3 {[%clk 0:02:05]} 24... Rd7 {[%clk 0:01:53.7]}
25. Be3 {[%clk 0:02:03.8]} 25... Rad8 {[%clk 0:01:52.9]} 26. Rc1 {[%clk
0:01:58.4]} 26... Ne8 {[%clk 0:01:30.2]} 27. Bb6 {[%clk 0:01:53.2]} 27... Nc7
{[%clk 0:01:30.5]} 28. f4 {[%clk 0:01:28.8]} 28... Re8 {[%clk 0:01:29.5]} 29.
Rd1 {[%clk 0:01:15]} 29... Rxd1+ {[%clk 0:01:25.3]} 30. Qxd1 {[%clk 0:01:16.9]}
30... Rd8 {[%clk 0:01:25]} 31. Rd3 {[%clk 0:01:15.1]} 31... Rxd3 {[%clk
0:01:25.1]} 32. Qxd3 {[%clk 0:01:17]} 32... Nb5 {[%clk 0:01:25.6]} 33. Bc5
{[%clk 0:01:14.1]} 33... Qe8 {[%clk 0:01:22.2]} 34. Kg2 {[%clk 0:01:10.7]} 34...
Qc8 {[%clk 0:01:17.3]} 35. h3 {[%clk 0:01:09.4]} 35... f5 {[%clk 0:01:17.7]} 36.
exf5 {[%clk 0:01:03.1]} 36... exf5 {[%clk 0:01:18.1]} 37. Qc4+ {[%clk
0:01:03.8]} 37... Kh7 {[%clk 0:01:18.1]} 38. Qf7 {[%clk 0:01:04.8]} 38... Kh8
{[%clk 0:00:53.4]} 39. Bf8 {[%clk 0:00:54.9]} 39... Qc7 {[%clk 0:00:48.8]} 40.
Qxf5 {[%clk 0:00:41.4]} 40... Nd4 {[%clk 0:00:47.3]} 41. Qe4 {[%clk 0:00:34.7]}
41... Qd7 {[%clk 0:00:46.2]} 42. Bc5 {[%clk 0:00:29.2]} 42... Nf5 {[%clk
0:00:46.3]} 43. Qe2 {[%clk 0:00:22.9]} 43... Qd5+ {[%clk 0:00:46.1]} 44. Kh2
{[%clk 0:00:23.9]} 44... Kg8 {[%clk 0:00:41.9]} 45. g4 {[%clk 0:00:23.2]} 45...
Nh4 {[%clk 0:00:40.9]} 46. Qf2 {[%clk 0:00:24.3]} 46... Ng6 {[%clk 0:00:38.7]}
47. Qe3 {[%clk 0:00:20.9]} 47... Qf7 {[%clk 0:00:34.3]} 48. Kg3 {[%clk
0:00:21.5]} 48... Nf8 {[%clk 0:00:33.6]} 49. h4 {[%clk 0:00:20.9]} 49... Nd7
{[%clk 0:00:34.2]} 50. Bd4 {[%clk 0:00:20.5]} 50... Nf6 {[%clk 0:00:35.1]} 51.
h5 {[%clk 0:00:19.7]} 51... Nd5 {[%clk 0:00:34.6]} 52. Qd2 {[%clk 0:00:15.1]}
52... Qe7 {[%clk 0:00:32.5]} 53. Bc5 {[%clk 0:00:16.5]} 53... Qe4 {[%clk
0:00:32.7]} 54. Bd6 {[%clk 0:00:14.9]} 54... Qh1 {[%clk 0:00:26.9]} 55. Qe2
{[%clk 0:00:09.8]} 55... Qg1+ {[%clk 0:00:22.3]} 56. Kh3 {[%clk 0:00:11.2]}
56... Qh1+ {[%clk 0:00:22]} 57. Kg3 {[%clk 0:00:12]} 57... Kf7 {[%clk 0:00:22]}
58. g5 {[%clk 0:00:11.8]} 58... Qg1+ {[%clk 0:00:18.6]} 59. Kh4 {[%clk
0:00:10.9]} 59... Qh1+ {[%clk 0:00:09.7]} 60. Kg3 {[%clk 0:00:10.9]} 60... hxg5
{[%clk 0:00:09.3]} 61. fxg5 {[%clk 0:00:11.7]} 61... Qg1+ {[%clk 0:00:09.4]} 62.
Qg2 {[%clk 0:00:12.6]} 62... Qd4 {[%clk 0:00:08.3]} 63. Qf3+ {[%clk 0:00:11.5]}
63... Ke6 {[%clk 0:00:08.4]} 64. Qg4+ {[%clk 0:00:10.8]} 64... Qxg4+ {[%clk
0:00:07.2]} 65. Kxg4 {[%clk 0:00:12.7]} 65... Kxd6 {[%clk 0:00:08.2]} 66. Kf5
{[%clk 0:00:14.2]} 66... Ke7 {[%clk 0:00:08.6]} 67. Kg6 {[%clk 0:00:14.7]} 67...
Kf8 {[%clk 0:00:09.3]} 68. Kh7 {[%clk 0:00:08.7]} 68... Nxb4 {[%clk 0:00:09.1]}
69. h6 {[%clk 0:00:10.2]} 69... gxh6 {[%clk 0:00:09.8]} 70. g6 {[%clk
0:00:11.8]} 70... Nd5 {[%clk 0:00:04.4]} 71. g7+ {[%clk 0:00:13.4]} 71... Ke7
{[%clk 0:00:05.3]} 72. g8=Q {[%clk 0:00:10.9]} 72... Nf6+ {[%clk 0:00:05.4]} 0-1